{"text_format":"1","workbook":"xlsx","n_sheets":4,"sheets":["Paste Data","Helli Split","1st fligth","2nd flight"],"not_rendered":{"charts":0,"images":1,"macros":0,"external_links":1,"defined_names":4,"comments":1,"pivot_tables":0},"unopened":[],"bounds":{"document_bytes":16777216,"sheet_cells":100000,"rows_first":2000,"rows_last":500,"rows_between":2000,"halvings":0,"cell_chars":16384,"cell_head_chars":4096},"cells_cut":0,"cells_raw":0,"read":"whole","date_system":"1900"}

{"sheet":"Paste Data","index":0,"n_rows":57,"n_cols":36,"rows_kept":57,"cut":false,"hidden":false,"merged":[]}
["N",null,null,null,"Name","Van N","Position","CO","C","M","R","Code","Code","Code",null,"N",null,"Name","Position","Co","P N","C","M ","R","Days","Code","Code","Code","Code",null,"Carriers","Check in time"]
[]
[1,"Checked In","Problems:\r\nNationality\r\nBaggage Weight\r\nPassenger Weight\r\nCatering Reimbursable\r\nContract Manning\r\nEssential Crew\r\n\r\nWarnings:\r\nNational ID / Passport\r\nEmergency Contact Information\r\n",null,"Romanowski, Przemyslaw ","Van N 2025644","INSPECTOR.","ABS","310A","S",5,"GSF SERVICE",null,1,null,1,"Checked Out","Khudaverdiyev, Alas ","Night DMC","BP","AZE14574372","212A","P",3,null,"CLIENT","Undo",null,1,null,"Aaron McCall ","TBA",null,"To","CREWCHANGE     ","From"]
[2,"Checked In","Problems:\r\nNationality\r\nBirth Date\r\nBaggage Weight\r\nPassenger Weight\r\nCatering Reimbursable\r\nContract Manning\r\nEssential Crew\r\n\r\nWarnings:\r\nNational ID / Passport\r\nEmergency Contact Information\r\n",null,"Dadashev, Ilkin ","Van N 2042675","Night DMC","BP","310B","S",5,"CLIENT","Undo",2,null,2,"Checked Out","Nagiyev, Emin ","TOURPUSHER","CDC","AZE 07348720","108A","P",2,null,"GSF - CDC","Undo",null,2,null,"Cougar","06 00",null,{"$f":"[1]AVLOG!O5","v":15},"CDC",{"$f":"[1]AVLOG!P5","v":17}]
[3,"Checked In","Warnings:\r\nNational ID / Passport\r\nEmergency Contact Information\r\n",null,"Hajiyev, Teymur ","Van N 246822","ASST DRILLER.","CDC","203A","P",3,"GSF - CDC","Undo",2,null,3,"Checked Out","Pashayev, Sardar ","TOURPUSHER","CDC","AZE #01851769","231A","P",3,null,"GSF - CDC","Undo",null,2,null,"Hellicopter","06 30"]
[4,"Checked In","Warnings:\r\nNational ID / Passport\r\nEmergency Contact Information\r\n",null,"Mamedov, Ali ","Van N 253295","DERRICKMAN","CDC","216B","P",1,"GSF - CDC","Undo",2,null,4,"Checked Out","Rzayev, Anar ","DERRICKMAN","CDC","AZE06662845","217B","P",1,null,"GSF - CDC","Undo",null,2,null,"TBA","7 00"]
[5,"Checked In","Problems:\r\nNationality\r\nBirth Date\r\nBaggage Weight\r\nPassenger Weight\r\n\r\nWarnings:\r\nNational ID / Passport\r\nEmergency Contact Information\r\n",null,"Manafov, Aslan ","Van N 705587","MATERIALSMAN","CDC","228B","S",5,"GSF - CDC","Undo",2,null,5,"Checked Out","Suleymanov, Vagif ","DECKPUSHER","CDC","AZE 09602816","230A","P",4,null,"GSF - CDC","Undo",null,2,null,null,"7 30"]
[6,"Checked In","Warnings:\r\nNational ID / Passport\r\nEmergency Contact Information\r\n",null,"Muradov, Emin ","Van N 756663","CRANE OPERATOR","CDC","230A","P",4,"GSF - CDC","Undo",2,null,6,"Checked Out","Yagubov, Eldaniz ","ROUSTABOUT","CDC","AZE 03394241","106B","P",2,null,"GSF - CDC","Undo",null,2,null,null,"8 00"]
[7,"Checked In","Warnings:\r\nNational ID / Passport\r\nEmergency Contact Information\r\n",null,"Nuriyev, Shahin ","Van N 2006331","ROUGHNECK","CDC","119A","P",5,"GSF - CDC","Undo",2,null,7,"Checked Out","Yusubov, Subhan ","MECHANIC","CDC","AZE 07629402","214A","S",1,null,"GSF - CDC","Undo",null,2,null,null,"8 30"]
[8,"Checked In","Warnings:\r\nNational ID / Passport\r\nEmergency Contact Information\r\n",null,"Osadchiy, Valeri ","Van N 212854","SNR MECHANIC","CDC","214A","S",1,"GSF - CDC","Undo",2,null,8,"Checked Out","Borodin, Andrey ","DD","Sperry Sun","N06606128","116A","S",1,null,"CLIENT SERVICE","Undo",null,2,null,null,"9 00"]
[9,"Checked In","Warnings:\r\nNational ID / Passport\r\nEmergency Contact Information\r\n",null,"Patient, Steven ","Van N 1033341","TOURPUSHER","CDC","231A","P",3,"GSF","Undo",2,null,9,"Checked Out","Mamedguliyev, Teymur ","SUPERVISOR.","Swaco","AZE 05464233","307B","P",5,null,"CLIENT SERVICE","Undo",null,2,null,null,"9 30"]
[10,"Checked In","Problems:\r\nNationality\r\nBaggage Weight\r\nPassenger Weight\r\nCatering Reimbursable\r\nContract Manning\r\nEssential Crew\r\n\r\nWarnings:\r\nNational ID / Passport\r\nEmergency Contact Information\r\n",null,"Piraliyev, Azer ","Van N 725419","DRILLER TRAINEE.","CDC","204B","S",5,"GSF - CDC","Undo",2,null,10,"Checked Out","Mirzoyev, Elkhan ","CUTTING TECH","Swaco","AZE 04195438",null,null,null,null,"CLIENT SERVICE","Undo",null,2,null,null,"10 00"]
[11,"Checked In","Warnings:\r\nNational ID / Passport\r\nEmergency Contact Information\r\n",null,"Seyid, Ziya ","Van N 793886","DERRICKMAN","CDC","217B","P",1,"GSF - CDC","Undo",2,null,11,"Checked Out","Agayev, Faig ","Snr.Asst.Barge engineer","CDC","AZE 07696818","213A","P",3,0,"GSF - CDC",null,null,2,null,null,"10 30"]
[12,"Checked In","Problems:\r\nNationality\r\nBaggage Weight\r\nPassenger Weight\r\nCatering Reimbursable\r\nContract Manning\r\nEssential Crew\r\n\r\nWarnings:\r\nNational ID / Passport\r\nEmergency Contact Information\r\n",null,"Shafagatov, Ilgar ","Van N 248734","ROUSTABOUT","CDC","105B","P",2,"GSF - CDC","Undo",2,null,12,"Checked Out","Bakirov, Rauf ","STOREKEEPER","CDC","AZE #6322168","228A","S",4,null,"GSF - CDC","Undo",null,2,null,null,"11 00"]
[13,"Checked In","Warnings:\r\nNational ID / Passport\r\nEmergency Contact Information\r\n",null,"Tutynin, Ivan ","Van N 833033","DD","Sperry Sun","116A","S",1,"CLIENT SERVICE","Undo",2,null,13,"Checked Out","Bell, Alan ","CHIEF ENGINEER","CDC",99122482,"207B","P",3,null,"GSF","Undo",null,2,null,null,"11 30"]
[14,"Checked In","Warnings:\r\nNational ID / Passport\r\nEmergency Contact Information\r\n",null,"Guliyev, Ramiz ","Van N 247503","SNR. HSE ADVISOR","BP","225A","S",4,"CLIENT",null,2,null,14,"Checked Out","Gambarov, Turgut ","PUMPMAN.","CDC","AZE 02715809","216B","P",1,null,"GSF - CDC","Undo",null,2,null,null,"12 00"]
[15,"Checked In","Warnings:\r\nNational ID / Passport\r\nEmergency Contact Information\r\n",null,"Agayev, Javid ","Van N 780351","ASST DRILLER.","CDC","203B","P",3,"GSF - CDC","Undo",2,null,15,"Checked Out","Isayev, Fikret ","ELECTRICIAN SNR.","CDC","AZE 02572460","214B","P",1,null,"GSF - CDC","Undo",null,2,null,null,"12 30"]
[16,"Checked In","Warnings:\r\nNational ID / Passport\r\nEmergency Contact Information\r\n",null,"Buchla, Robert ","Van N 2046195","CHIEF ENGINEER","CDC","207B","P",3,"GSF","Undo",2,null,16,"Checked Out","Karamov, Mohammad ","Trainee Drilling","CDC","AZE #06353470","204B","S",5,null,"GSF - CDC","Undo",null,2,null,null,"13 00"]
[17,"Checked In","Problems:\r\nNationality\r\nBaggage Weight\r\nPassenger Weight\r\n\r\nWarnings:\r\nNational ID / Passport\r\nEmergency Contact Information\r\n",null,"Shahbazov, Huseynaga ","Van N 222341","SNR ELECTRICIAN.","CDC","214B","P",1,"GSF - CDC","Undo",1,null,17,"Checked Out","Khalafov, Namig ","STOREKEEPER","CDC","AZE07238649","228B","S",5,null,"GSF - CDC","Undo",null,1,null,null,"13 30"]
[18,"Checked In","Warnings:\r\nNational ID / Passport\r\nEmergency Contact Information\r\n",null,"Badalov, Ziyad ","Van N 2048206","CUTTING TECH","Swaco","307B","P",5,"CLIENT SERVICE","Undo",1,null,18,"Checked Out","Mamedov, Shamistan ","ASST DRILLER.","CDC","AZE 02184273","203A","P",3,null,"GSF - CDC","Undo",null,1,null,null,"14 00",null,{"$f":"SUM(AH4:AH19)","v":15},{"$f":"AH20-AJ20+[1]POB!D4","v":112},{"$f":"SUM(AJ4:AJ19)","v":17}]
[19,"Checked In","Problems:\r\nNationality\r\nBirth Date\r\nBaggage Weight\r\nPassenger Weight\r\nCatering Reimbursable\r\nContract Manning\r\nEssential Crew\r\n\r\nWarnings:\r\nNational ID / Passport\r\nEmergency Contact Information\r\n",null,"Huseynov, Rashad ","Van N 2006517","FILTRATION","Swaco","223A","S",3,"CLIENT SERVICE","Undo",1,null,19,"Checked Out","Glass, Mike ","Subsea Engineer","CDC",66059305,"226A","S",4,null,"GSF","Undo",null,1,null,null,"14 30"]
[20,"Checked In","Warnings:\r\nNational ID / Passport\r\nEmergency Contact Information\r\n",null,"Velikhanov, Elshad ","Van N 2012029","ROUSTABOUT","CDC","228A","S",4,"GSF - CDC","Undo",1,null,20,"Checked Out","Hasanov, Orkhan ","Subsea Engineer","CDC","AZE 02712944","215A","P",2,null,"GSF - CDC","Undo",null,1,null,null,"15 00",null,{"$f":"COUNT(A3:A33)","v":22},"Actual",{"$f":"COUNT(P3:P41)","v":21}]
[21,"Checked In","Problems:\r\nNationality\r\nBirth Date\r\nBaggage Weight\r\nPassenger Weight\r\nCatering Reimbursable\r\nContract Manning\r\nEssential Crew\r\n\r\nWarnings:\r\nNational ID / Passport\r\nEmergency Contact Information\r\n",null,"Zarbaliyev, Elkhan ","Van N 222152","SNR. SUB SEA ENGINEER.","CDC","215B","P",2,"GSF - CDC","Undo",1,null,21,"Checked Out","Huseynov, Khalig ","ASST DRILLER.","CDC","AZE 08575440","203B","P",3,null,"GSF - CDC","Undo",null,1,null,null,"15 30"]
[22,"Checked In","Problems:\r\nNationality\r\nBaggage Weight\r\nPassenger Weight\r\nCatering Reimbursable\r\nContract Manning\r\nEssential Crew\r\n\r\nWarnings:\r\nNational ID / Passport\r\nEmergency Contact Information\r\n",null,"Hasanov, Eyvaz ","Van N 2019776","LINER HANGER","Halliburton","225B","S",4,"CLIENT SERVICE","Undo",1,null,null,null,null,null,null,null,null,null,null,null,null,null,null,1,null,null,"16 00"]
[]
[]
[]
[]
[null,null,null,null,null,null,null,null,null,null,null,null,null,null,null,null,null,null,null,null,null,null,null,null,null,null,null,null,null,null,null,null,null,null,"Today"]
[null,null,null,null,null,null,null,null,null,null,null,null,null,null,null,null,null,null,null,null,null,null,null,null,null,null,null,null,null,null,null,null,null,null,{"$f":"TODAY()+1","v":"2014-08-22"}]
[]
[]
[null,null,null,null,null,null,null,null,null,null,null,null,null,null,null,null,null,null,null,null,null,null,null,null,null,null,null,null,null,null,null,null,null,null,{"$f":"IF(N3=1,E3,\" \")","v":"Romanowski, Przemyslaw "}]
[]
[]
[]
[]
[]
[]
[]
[]
[]
[]
[null,null,null,null,"Carrier",null,"1st flight check in time",null,null,null,null,null,null,null,null,null,null,"Cabin changes","From ","To"]
[null,null,null,null,"TBA",null,null,null,null,null,null,null,null,null,null,null,null,"Alexeev Misha","104b","102a"]
[null,null,null,null,"Check in time Baku",null,"2nd flight check in time"]
[null,null,null,null,"TBA"]
[null,null,null,null,"Check in time DDGG"]
[null,null,null,null,"TBA",null,"Location"]
[null,null,null,null,null,null,"Zabrat"]
[]
[]
[null,null,null,null,"Route"]
[]
[]
[]
[null,null,null,null,null,null,"DDGG check in times"]

{"sheet":"Helli Split","index":1,"n_rows":59,"n_cols":14,"rows_kept":59,"cut":false,"hidden":false,"merged":[[0,3,0,5],[5,0,22,0],[5,7,22,7],[23,0,34,0],[23,7,34,7],[41,0,58,0]]}
[null,null,null,{"$f":"[1]AVLOG!C1","v":"2014-08-22"},null,null,null,null,null,"Hellicopters Split",null,{"$f":"[1]AVLOG!K1","v":"00:00:00"}]
[]
[null,null,null,"To",null,null,null,null,null,"From"]
[]
[null,null,"N","Name","Van Number","Position","Company",null,"N","Name","Position","Company"]
["1std flight",null,null,null,null,null,null,"1std flight"]
[null,null,null,null,null,null,null,null,null,null,null,null,null,"1st flight check in time"]
[null,null,null,null,null,null,null,null,null,null,null,null,null,{"$f":"'Paste Data'!G45","v":0}]
[null,null,null,null,null,null,null,null,null,null,null,null,null,"2nd flight check in time"]
[null,null,null,null,null,null,null,null,null,null,null,null,null,{"$f":"'Paste Data'!G47","v":0}]
[]
[null,null,null,null,null,null,null,null,null,null,null,null,null,"Location"]
[null,null,null,null,null,null,null,null,null,null,null,null,null,"Zabrat"]
[]
[]
[]
[]
[]
[]
[null,null,null,null,null,null,null,null,null,null,null,null,null,"DDGG check in times"]
[null,null,null,null,null,null,null,null,null,null,null,null,null,{"$f":"'Paste Data'!G58","v":0}]
[null,null,null,null,null,null,null,null,null,null,null,null,null,{"$f":"'Paste Data'!G59","v":0}]
[]
["2nd flight",null,null,null,null,null,null,"2nd flight"]
[]
[]
[]
[]
[]
[]
[]
[]
[]
[]
[]
[]
[]
[]
[]
[]
[]
["2nd flight",null,{"$f":"IF(ISTEXT(D42),1,\"\")","v":1},{"$f":"IF('Paste Data'!N39=3,'Paste Data'!E39,\" \")","v":" "},{"$f":"IF('Paste Data'!N39=3,'Paste Data'!F39,\" \")","v":" "},{"$f":"IF('Paste Data'!N39=3,'Paste Data'!G39,\" \")","v":" "},{"$f":"IF('Paste Data'!N39=3,'Paste Data'!H39,\" \")","v":" "},null,{"$f":"IF(ISTEXT(J42),1,\"\")","v":1},{"$f":"IF('Paste Data'!AC39=3,'Paste Data'!R39,\" \")","v":" "},{"$f":"IF('Paste Data'!AC39=3,'Paste Data'!S39,\" \")","v":" "},{"$f":"IF('Paste Data'!AC39=3,'Paste Data'!T39,\" \")","v":" "}]
[null,null,{"$f":"IF(ISTEXT(D43),C42+1,\"\")","v":2},{"$f":"IF('Paste Data'!N40=3,'Paste Data'!E40,\" \")","v":" "},{"$f":"IF('Paste Data'!N40=3,'Paste Data'!F40,\" \")","v":" "},{"$f":"IF('Paste Data'!N40=3,'Paste Data'!G40,\" \")","v":" "},{"$f":"IF('Paste Data'!N40=3,'Paste Data'!H40,\" \")","v":" "},null,{"$f":"IF(ISTEXT(J43),I42+1,\"\")","v":2},{"$f":"IF('Paste Data'!AC40=3,'Paste Data'!R40,\" \")","v":" "},{"$f":"IF('Paste Data'!AC40=3,'Paste Data'!S40,\" \")","v":" "},{"$f":"IF('Paste Data'!AC40=3,'Paste Data'!T40,\" \")","v":" "}]
[null,null,{"$f":"IF(ISTEXT(D44),C43+1,\"\")","v":3},{"$f":"IF('Paste Data'!N41=3,'Paste Data'!E41,\" \")","v":" "},{"$f":"IF('Paste Data'!N41=3,'Paste Data'!F41,\" \")","v":" "},{"$f":"IF('Paste Data'!N41=3,'Paste Data'!G41,\" \")","v":" "},{"$f":"IF('Paste Data'!N41=3,'Paste Data'!H41,\" \")","v":" "},null,{"$f":"IF(ISTEXT(J44),I43+1,\"\")","v":3},{"$f":"IF('Paste Data'!AC41=3,'Paste Data'!R41,\" \")","v":" "},{"$f":"IF('Paste Data'!AC41=3,'Paste Data'!S41,\" \")","v":" "},{"$f":"IF('Paste Data'!AC41=3,'Paste Data'!T41,\" \")","v":" "}]
[null,null,4,{"$f":"IF('Paste Data'!N42=3,'Paste Data'!E42,\" \")","v":" "},{"$f":"IF('Paste Data'!N42=3,'Paste Data'!F42,\" \")","v":" "},{"$f":"IF('Paste Data'!N42=3,'Paste Data'!G42,\" \")","v":" "},{"$f":"IF('Paste Data'!N42=3,'Paste Data'!H42,\" \")","v":" "},null,4,{"$f":"IF('Paste Data'!AC42=3,'Paste Data'!R42,\" \")","v":" "},{"$f":"IF('Paste Data'!AC42=3,'Paste Data'!S42,\" \")","v":" "},{"$f":"IF('Paste Data'!AC42=3,'Paste Data'!T42,\" \")","v":" "}]
[null,null,5,{"$f":"IF('Paste Data'!N43=3,'Paste Data'!E43,\" \")","v":" "},{"$f":"IF('Paste Data'!N43=3,'Paste Data'!F43,\" \")","v":" "},{"$f":"IF('Paste Data'!N43=3,'Paste Data'!G43,\" \")","v":" "},{"$f":"IF('Paste Data'!N43=3,'Paste Data'!H43,\" \")","v":" "},null,5,{"$f":"IF('Paste Data'!AC43=3,'Paste Data'!R43,\" \")","v":" "},{"$f":"IF('Paste Data'!AC43=3,'Paste Data'!S43,\" \")","v":" "},{"$f":"IF('Paste Data'!AC43=3,'Paste Data'!T43,\" \")","v":" "}]
[null,null,6,{"$f":"IF('Paste Data'!N44=3,'Paste Data'!E44,\" \")","v":" "},{"$f":"IF('Paste Data'!N44=3,'Paste Data'!F44,\" \")","v":" "},{"$f":"IF('Paste Data'!N44=3,'Paste Data'!G44,\" \")","v":" "},{"$f":"IF('Paste Data'!N44=3,'Paste Data'!H44,\" \")","v":" "},null,6,{"$f":"IF('Paste Data'!AC44=3,'Paste Data'!R44,\" \")","v":" "},{"$f":"IF('Paste Data'!AC44=3,'Paste Data'!S44,\" \")","v":" "},{"$f":"IF('Paste Data'!AC44=3,'Paste Data'!T44,\" \")","v":" "}]
[null,null,7,{"$f":"IF('Paste Data'!N45=3,'Paste Data'!E45,\" \")","v":" "},{"$f":"IF('Paste Data'!N45=3,'Paste Data'!F45,\" \")","v":" "},{"$f":"IF('Paste Data'!N45=3,'Paste Data'!G45,\" \")","v":" "},{"$f":"IF('Paste Data'!N45=3,'Paste Data'!H45,\" \")","v":" "},null,7,{"$f":"IF('Paste Data'!AC45=3,'Paste Data'!R45,\" \")","v":" "},{"$f":"IF('Paste Data'!AC45=3,'Paste Data'!S45,\" \")","v":" "},{"$f":"IF('Paste Data'!AC45=3,'Paste Data'!T45,\" \")","v":" "}]
[null,null,8,{"$f":"IF('Paste Data'!N46=3,'Paste Data'!E46,\" \")","v":" "},{"$f":"IF('Paste Data'!N46=3,'Paste Data'!F46,\" \")","v":" "},{"$f":"IF('Paste Data'!N46=3,'Paste Data'!G46,\" \")","v":" "},{"$f":"IF('Paste Data'!N46=3,'Paste Data'!H46,\" \")","v":" "},null,8,{"$f":"IF('Paste Data'!AC46=3,'Paste Data'!R46,\" \")","v":" "},{"$f":"IF('Paste Data'!AC46=3,'Paste Data'!S46,\" \")","v":" "},{"$f":"IF('Paste Data'!AC46=3,'Paste Data'!T46,\" \")","v":" "}]
[null,null,9,{"$f":"IF('Paste Data'!N47=3,'Paste Data'!E47,\" \")","v":" "},{"$f":"IF('Paste Data'!N47=3,'Paste Data'!F47,\" \")","v":" "},{"$f":"IF('Paste Data'!N47=3,'Paste Data'!G47,\" \")","v":" "},{"$f":"IF('Paste Data'!N47=3,'Paste Data'!H47,\" \")","v":" "},null,9,{"$f":"IF('Paste Data'!AC47=3,'Paste Data'!R47,\" \")","v":" "},{"$f":"IF('Paste Data'!AC47=3,'Paste Data'!S47,\" \")","v":" "},{"$f":"IF('Paste Data'!AC47=3,'Paste Data'!T47,\" \")","v":" "}]
[null,null,10,{"$f":"IF('Paste Data'!N48=3,'Paste Data'!E48,\" \")","v":" "},{"$f":"IF('Paste Data'!N48=3,'Paste Data'!F48,\" \")","v":" "},{"$f":"IF('Paste Data'!N48=3,'Paste Data'!G48,\" \")","v":" "},{"$f":"IF('Paste Data'!N48=3,'Paste Data'!H48,\" \")","v":" "},null,10,{"$f":"IF('Paste Data'!AC48=3,'Paste Data'!R48,\" \")","v":" "},{"$f":"IF('Paste Data'!AC48=3,'Paste Data'!S48,\" \")","v":" "},{"$f":"IF('Paste Data'!AC48=3,'Paste Data'!T48,\" \")","v":" "}]
[null,null,11,{"$f":"IF('Paste Data'!N49=3,'Paste Data'!E49,\" \")","v":" "},{"$f":"IF('Paste Data'!N49=3,'Paste Data'!F49,\" \")","v":" "},{"$f":"IF('Paste Data'!N49=3,'Paste Data'!G49,\" \")","v":" "},{"$f":"IF('Paste Data'!N49=3,'Paste Data'!H49,\" \")","v":" "},null,11,{"$f":"IF('Paste Data'!AC49=3,'Paste Data'!R49,\" \")","v":" "},{"$f":"IF('Paste Data'!AC49=3,'Paste Data'!S49,\" \")","v":" "},{"$f":"IF('Paste Data'!AC49=3,'Paste Data'!T49,\" \")","v":" "}]
[null,null,12,{"$f":"IF('Paste Data'!N50=3,'Paste Data'!E50,\" \")","v":" "},{"$f":"IF('Paste Data'!N50=3,'Paste Data'!F50,\" \")","v":" "},{"$f":"IF('Paste Data'!N50=3,'Paste Data'!G50,\" \")","v":" "},{"$f":"IF('Paste Data'!N50=3,'Paste Data'!H50,\" \")","v":" "},null,12,{"$f":"IF('Paste Data'!AC50=3,'Paste Data'!R50,\" \")","v":" "},{"$f":"IF('Paste Data'!AC50=3,'Paste Data'!S50,\" \")","v":" "},{"$f":"IF('Paste Data'!AC50=3,'Paste Data'!T50,\" \")","v":" "}]
[null,null,13,{"$f":"IF('Paste Data'!N51=3,'Paste Data'!E51,\" \")","v":" "},{"$f":"IF('Paste Data'!N51=3,'Paste Data'!F51,\" \")","v":" "},{"$f":"IF('Paste Data'!N51=3,'Paste Data'!G51,\" \")","v":" "},{"$f":"IF('Paste Data'!N51=3,'Paste Data'!H51,\" \")","v":" "},null,13,{"$f":"IF('Paste Data'!AC51=3,'Paste Data'!R51,\" \")","v":" "},{"$f":"IF('Paste Data'!AC51=3,'Paste Data'!S51,\" \")","v":" "},{"$f":"IF('Paste Data'!AC51=3,'Paste Data'!T51,\" \")","v":" "}]
[null,null,14,{"$f":"IF('Paste Data'!N52=3,'Paste Data'!E52,\" \")","v":" "},{"$f":"IF('Paste Data'!N52=3,'Paste Data'!F52,\" \")","v":" "},{"$f":"IF('Paste Data'!N52=3,'Paste Data'!G52,\" \")","v":" "},{"$f":"IF('Paste Data'!N52=3,'Paste Data'!H52,\" \")","v":" "},null,14,{"$f":"IF('Paste Data'!AC52=3,'Paste Data'!R52,\" \")","v":" "},{"$f":"IF('Paste Data'!AC52=3,'Paste Data'!S52,\" \")","v":" "},{"$f":"IF('Paste Data'!AC52=3,'Paste Data'!T52,\" \")","v":" "}]
[null,null,15,{"$f":"IF('Paste Data'!N53=3,'Paste Data'!E53,\" \")","v":" "},{"$f":"IF('Paste Data'!N53=3,'Paste Data'!F53,\" \")","v":" "},{"$f":"IF('Paste Data'!N53=3,'Paste Data'!G53,\" \")","v":" "},{"$f":"IF('Paste Data'!N53=3,'Paste Data'!H53,\" \")","v":" "},null,15,{"$f":"IF('Paste Data'!AC53=3,'Paste Data'!R53,\" \")","v":" "},{"$f":"IF('Paste Data'!AC53=3,'Paste Data'!S53,\" \")","v":" "},{"$f":"IF('Paste Data'!AC53=3,'Paste Data'!T53,\" \")","v":" "}]
[null,null,16,{"$f":"IF('Paste Data'!N54=3,'Paste Data'!E54,\" \")","v":" "},{"$f":"IF('Paste Data'!N54=3,'Paste Data'!F54,\" \")","v":" "},{"$f":"IF('Paste Data'!N54=3,'Paste Data'!G54,\" \")","v":" "},{"$f":"IF('Paste Data'!N54=3,'Paste Data'!H54,\" \")","v":" "},null,16,{"$f":"IF('Paste Data'!AC54=3,'Paste Data'!R54,\" \")","v":" "},{"$f":"IF('Paste Data'!AC54=3,'Paste Data'!S54,\" \")","v":" "},{"$f":"IF('Paste Data'!AC54=3,'Paste Data'!T54,\" \")","v":" "}]
[null,null,17,{"$f":"IF('Paste Data'!N55=3,'Paste Data'!E55,\" \")","v":" "},{"$f":"IF('Paste Data'!N55=3,'Paste Data'!F55,\" \")","v":" "},{"$f":"IF('Paste Data'!N55=3,'Paste Data'!G55,\" \")","v":" "},{"$f":"IF('Paste Data'!N55=3,'Paste Data'!H55,\" \")","v":" "},null,17,{"$f":"IF('Paste Data'!AC55=3,'Paste Data'!R55,\" \")","v":" "},{"$f":"IF('Paste Data'!AC55=3,'Paste Data'!S55,\" \")","v":" "},{"$f":"IF('Paste Data'!AC55=3,'Paste Data'!T55,\" \")","v":" "}]
[null,null,18,{"$f":"IF('Paste Data'!N56=3,'Paste Data'!E56,\" \")","v":" "},{"$f":"IF('Paste Data'!N56=3,'Paste Data'!F56,\" \")","v":" "},{"$f":"IF('Paste Data'!N56=3,'Paste Data'!G56,\" \")","v":" "},{"$f":"IF('Paste Data'!N56=3,'Paste Data'!H56,\" \")","v":" "},null,18,{"$f":"IF('Paste Data'!AC56=3,'Paste Data'!R56,\" \")","v":" "},{"$f":"IF('Paste Data'!AC56=3,'Paste Data'!S56,\" \")","v":" "},{"$f":"IF('Paste Data'!AC56=3,'Paste Data'!T56,\" \")","v":" "}]

{"sheet":"1st fligth","index":2,"n_rows":40,"n_cols":6,"rows_kept":40,"cut":false,"hidden":false,"merged":[[1,4,1,5],[24,0,24,5],[25,1,25,4],[26,1,26,4],[27,1,27,4],[33,3,33,5]]}
[null,"FLIGHT MANIFEST","DG1A"]
[null,"S-92","DDGG-ZABR",null,{"$f":"TODAY()","v":"2014-08-21"}]
[]
["N","Name ","Company ","Q-TY","BAG","PAX"]
[{"$f":"IF(ISTEXT(B5),1,\"\")","v":""}]
[{"$f":"IF(ISTEXT(B6),A5+1,\"\")","v":""}]
[{"$f":"IF(ISTEXT(B7),A6+1,\"\")","v":""}]
[""]
[""]
[""]
[""]
[""]
[""]
[""]
[""]
[""]
[""]
[""]
[""]
[""]
[""]
[""]
[null,"TOTAL","KG",{"$f":"SUM(D5:D22)","v":0},{"$f":"SUM(E5:E22)","v":0},{"$f":"SUM(F5:F22)","v":0}]
[]
["CARGO"]
[1]
[2]
[3]
[null,"TOTAL",null,null,"KG",{"$f":"SUM(F26:F28)","v":0}]
[]
[null,null,null,"PAX","BAGAGE","CARGO"]
[null,"TOTAL ON BOARD","IN LBS:",{"$f":"F23*2.2","v":0},{"$f":"E23*2.2","v":0},{"$f":"F29*2.2","v":0}]
[]
[null,"TOTAL ","IN LBS",{"$f":"SUM(D32:F32)","v":0}]
[]
[null,"FOLLOWER ",null,null,"Zaur Rzayev"]
[]
[null,"PILOTS"]
[]
[null,"DANGEROUS ITEMS ",null,null,"NO"]

{"sheet":"2nd flight","index":3,"n_rows":40,"n_cols":6,"rows_kept":40,"cut":false,"hidden":false,"merged":[[33,3,33,5],[1,4,1,5],[22,0,22,1],[24,0,24,5],[25,1,25,4],[26,1,26,4],[27,1,27,4]]}
[null,"FLIGHT MANIFEST","DG2A"]
[null,"S-92","DDGG-ZABR",null,{"$f":"TODAY()","v":"2014-08-21"}]
[]
["N","Name ","Company ","Q-TY","BAG","PAX"]
[{"$f":"IF(ISTEXT(B5),1,\"\")","v":""}]
[{"$f":"IF(ISTEXT(B6),A5+1,\"\")","v":""}]
[{"$f":"IF(ISTEXT(B7),A6+1,\"\")","v":""}]
[""]
[""]
[""]
[""]
[""]
[""]
[""]
[""]
[""]
[""]
[""]
[""]
[""]
[""]
[""]
["TOTAL",null,"IN KG",{"$f":"SUM(D5:D22)","v":0},{"$f":"SUM(E5:E22)","v":0},{"$f":"SUM(F5:F22)","v":0}]
[]
["CARGO"]
[1]
[2]
[3]
[null,"TOTAL",null,null,"KG",{"$f":"SUM(F26:F28)","v":0}]
[]
[null,null,null,"PAX","BAGAGE","CARGO"]
[null,"TOTAL ON BOARD","IN LBS:",{"$f":"F23*2.2","v":0},{"$f":"E23*2.2","v":0},{"$f":"F29*2.2","v":0}]
[]
[null,"TOTAL ","IN LBS:",{"$f":"SUM(D32:F32)","v":0}]
[]
[null,"FOLLOWER ",null,null,"Zaur Rzayev"]
[]
[null,"PILOTS"]
[]
[null,"DANGEROUS ITEMS ",null,null,"NO"]